Cogmind - Beta 11.1 *** ADVENTURER MODE // 2022.05.18 @ 08:01:30 // Winter2019/RPGLIKE Player: Haldron Result: Destroyed self with Mini Grenade Launcher Performance ------------- Evolutions (2) 1000 Regions Visited (8) 1600 Robots Destroyed (78) 390 Value Destroyed (2220) 2220 Prototype IDs (4) 80 Alien Tech Used (0) 0 Bonus (474) 474 TOTAL SCORE: 5764 Bonus ------- High Alert Combat Kills 74 Follower Combat Kills 200 Entered Garrisons 200 Cogmind --------- Core Integrity 0/600 Matter 120/300 Energy 160/160 System Corruption 0% Temperature Cool (59) Movement Flying (29) Location -8/Garrison Parts ------- > --- POWER (1) -------- Light Nuclear Core > --- PROPULSION (3) --- Cesium-ion Thruster Cesium-ion Thruster Improved VTOL Module > --- UTILITY (3) ------ Structural Scanner Improved Signal Interpreter Hardened Light Armor Plating > --- WEAPON (2) ------- Mini Grenade Launcher Axe > --- INVENTORY (3) ---- Datajack Axe Peak State ------------ > --- POWER ------------ Light Nuclear Core > --- PROPULSION ------- Cesium-ion Thruster Cesium-ion Thruster Improved VTOL Module > --- UTILITY ---------- Structural Scanner Improved Signal Interpreter Hardened Light Armor Plating > --- WEAPON ----------- Shock Bomb Launcher Axe > --- INVENTORY -------- Mini Grenade Launcher Datajack Axe [Rating: 25] Favorites ----------- Power Improved Ion Engine Engine Improved Ion Engine Power Core Light Nuclear Core Propulsion Light Treads Treads Light Treads Flight Unit Cesium-ion Thruster Utility Structural Scanner Device Structural Scanner Processor Improved Signal Interpreter Protection Hardened Light Armor Plating Weapon Particle Gun Energy Gun Particle Gun Ballistic Gun Assault Rifle Launcher Mini Grenade Launcher Slashing Weapon Axe Special Melee Weapon Datajack Build | -11 -10 -10 -9 -9 -9 -8 -8 -8 ------- Run | Scr Mat Min Mat Min Exi Min Mat Gar Slots Evolved 5 | 3 . . . . . . 2 . Power . | . . . . . . . . . Propulsion 2 | 1 . . . . . . 1 . Utility 2 | 1 . . . . . . 1 . Weapon 1 | 1 . . . . . . . . Parts Attached 46 | 7 2 3 4 2 . 2 13 13 Power 3 | 1 . . 1 . . . 1 . Engine 2 | 1 . . 1 . . . . . Core 1 | . . . . . . . 1 . Reactor . | . . . . . . . . . Propulsion 7 | 2 . . . . . . 5 . Treads 4 | 2 . . . . . . 2 . Leg . | . . . . . . . . . Wheel . | . . . . . . . . . Hover . | . . . . . . . . . Flight 3 | . . . . . . . 3 . Utility 7 | 2 2 . . . . . 2 1 Device 4 | 2 2 . . . . . . . Storage . | . . . . . . . . . Processor 1 | . . . . . . . 1 . Hackware . | . . . . . . . . . Protection 2 | . . . . . . . 1 1 Artifact . | . . . . . . . . . Weapon 29 | 2 . 3 3 2 . 2 5 12 Energy Gun 4 | 1 . 2 . . . 1 . . Energy Cannon . | . . . . . . . . . Ballistic Gun 6 | 1 . . 2 1 . . 2 . Ballistic Cannon . | . . . . . . . . . Launcher 12 | . . 1 1 1 . 1 1 7 Special Weapon . | . . . . . . . . . Impact Weapon . | . . . . . . . . . Slashing Weapon 5 | . . . . . . . 2 3 Piercing Weapon . | . . . . . . . . . Special Melee Weapon 2 | . . . . . . . . 2 Unidentified Prototypes 1 | . . . . . . . 1 . Parts Lost . | . . . . . . . . . Power . | . . . . . . . . . Propulsion . | . . . . . . . . . Utility . | . . . . . . . . . Weapon . | . . . . . . . . . Highest Loss Streak . | . . . . . . . . . To Critical Strikes . | . . . . . . . . . Average Slot Usage (%) 98 | . 100 100 100 100 100 100 98 89 Engine 11 | . 14 14 14 14 14 14 7 . Core 1 | . . . . . . . 4 11 Treads 23 | . 28 28 28 28 28 28 16 . Flight 4 | . . . . . . . 10 33 Device 25 | . 28 28 28 28 28 28 24 11 Processor 2 | . . . . . . . 7 11 Energy Gun 12 | . 14 14 14 14 14 13 10 . Ballistic Gun 12 | . 14 14 13 13 14 14 10 . Slashing Weapon 1 | . . . . . . . 4 11 Naked Turns . | . . . . . . . . . Heaviest Build 20 | 11 11 12 15 15 15 15 15 20 Greatest Support 44 | 40 40 40 40 40 40 40 44 20 Greatest Overweight (x) 2 | 2 . . . . . . . . Average Overweight (x) . | . . . . . . . . . Largest Inventory Capacity 3 | . 2 2 2 2 2 2 3 3 Average Capacity 2 | . 1 2 2 2 2 2 2 3 Most Carried 3 | . 2 2 2 2 2 2 3 3 Average Carried 2 | . 1 2 2 2 2 2 2 2 Final Capacity 3 | . 2 2 2 2 2 2 3 3 Final Carried 3 | . 2 2 2 2 2 2 3 2 Class Distribution -------------------- 81% | Mutant 6% | Scout 6% | Scavenger-Scout 4% | Scavenger-Skirmisher Dominant Class ---------------- Mutant | -10/Materials Mutant | -10/Mines Mutant | -9/Materials Mutant | -9/Mines Mutant | -9/Exiles Mutant | -8/Mines Mutant | -8/Materials Scavenger-Scout | -8/Garrison Resources | -11 -10 -10 -9 -9 -9 -8 -8 -8 ----------- Run | Scr Mat Min Mat Min Exi Min Mat Gar Matter Collected 1161 | 282 131 79 74 78 . 106 281 130 Remotely 154 | 118 36 . . . . . . . Salvage Created 2306 | 90 410 245 280 57 . 197 742 285 Parts 156 | 5 20 12 28 . . 14 45 32 Haulers Intercepted 3 | . 1 . . . . . 2 . Recyclers Shooed 6 | . 1 . 1 . . . 4 . Parts Field Recycled . | . . . . . . . . . Retrieved Matter . | . . . . . . . . . Parts Self-Destructed . | . . . . . . . . . Prevented . | . . . . . . . . . Kills | -11 -10 -10 -9 -9 -9 -8 -8 -8 ------- Run | Scr Mat Min Mat Min Exi Min Mat Gar Combat Hostiles Destroyed 61 | . 8 7 8 9 . 7 6 16 Melee 4 | . . . . . . . . 4 Guns 36 | . 8 5 7 4 . 6 6 . AOE 21 | . . 2 1 5 . 1 . 12 Classes Destroyed 11 | 2 4 1 1 1 . . 2 . Worker 2 | . . 1 1 . . . . . Tunneler 6 | 2 . 2 . . . 2 . . Hauler 3 | . 1 . . . . . 2 . Recycler 6 | 1 . . . . . . 5 . Operator 1 | . . . . . . . 1 . Watcher 8 | . 2 . 2 . . . 4 . Swarmer 23 | . 3 5 3 . . 2 . 10 Grunt 22 | . 5 2 4 . . 5 2 4 Sentry 6 | . . . 1 . . . 3 2 Hunter 1 | . . . . . . . 1 . Assembled 9 | . . . . 9 . . . . Best Kill Streak 7 | 2 4 3 5 7 . 3 4 5 Combat Bots Only 7 | . 4 3 4 7 . 3 2 5 Max Kills in Single Turn 5 | 1 2 2 2 5 . 2 1 2 Gunslinging 1 | . 1 . 1 . . 1 . . Exploded 5 | . . 2 1 5 . 1 . 2 Melee 1 | . . . . . . . . 1 Uniques/NPCs Destroyed . | . . . . . . . . . Combat | -11 -10 -10 -9 -9 -9 -8 -8 -8 -------- Run | Scr Mat Min Mat Min Exi Min Mat Gar Damage Taken 2372 | . 277 141 115 377 . 448 460 554 Core 1939 | . 227 116 90 316 . 348 380 462 Absorbed by Shields 13 | . . . . . . . . 13 Redirected to Core 1325 | . 161 74 79 200 . 333 246 232 Core Remaining (%) 88 | 100 . 65 . . . 100 . . Volleys Fired 167 | 4 37 14 17 13 . 24 38 20 Largest 2 | 2 2 2 2 2 . 2 2 1 Hottest 88 | 70 70 85 88 88 . 88 88 36 Shots Fired 291 | 8 73 27 32 15 . 40 76 20 Gun 265 | 8 73 26 30 14 . 38 76 . Cannon . | . . . . . . . . . Launcher 26 | . . 1 2 1 . 2 . 20 Special . | . . . . . . . . . Kinetic 136 | 4 37 13 15 7 . 22 38 . Thermal 129 | 4 36 13 15 7 . 16 38 . Explosive 22 | . . 1 2 1 . 2 . 16 Electromagnetic 4 | . . . . . . . . 4 Robot Hit Streak 28 | 5 18 15 13 21 . 28 17 9 Robot Miss Streak 3 | 1 1 1 3 1 . 2 1 1 Penetration Max . | . . . . . . . . . Secondary Targets 12 | . 2 3 3 . . 3 1 . Max Gunslinging Chain 1 | . 1 1 1 . . 1 1 . Shots Hit Robots 237 | 5 57 21 21 12 . 36 62 23 Core Hits 138 | 3 20 14 13 12 . 16 34 26 Critical Kills . | . . . . . . . . . Critical Parts Destroyed . | . . . . . . . . . Critical Strikes 11 | 1 2 2 . . . . 5 1 Burn 9 | 1 2 2 . . . . 4 . Sever 2 | . . . . . . . 1 1 Melee Attacks 32 | . . . . . . . 9 23 Impact . | . . . . . . . . . Slashing 32 | . . . . . . . 9 23 Piercing . | . . . . . . . . . Sneak Attacks 1 | . . . . . . . 1 . Combat Hostiles . | . . . . . . . . . Follow-up Attacks . | . . . . . . . . . Damage Inflicted 4772 | 62 703 356 433 395 . 649 1091 1083 Guns 2881 | 62 703 268 349 161 . 485 853 . Cannons . | . . . . . . . . . Explosions 1245 | . . 88 82 234 . 164 . 677 Melee 644 | . . . . . . . 238 406 Ramming 2 | . . . 2 . . . . . Kinetic 1369 | 26 352 122 171 55 . 273 370 . Thermal 1542 | 36 351 146 178 106 . 212 483 30 Explosive 1120 | . . 88 82 234 . 164 . 552 Electromagnetic 95 | . . . . . . . . 95 Impact . | . . . . . . . . . Slashing 644 | . . . . . . . 238 406 Piercing . | . . . . . . . . . Highest Corruption . | . . . . . . . . . Average Corruption . | . . . . . . . . . Corruption Purged . | . . . . . . . . . Corruption Blocked . | . . . . . . . . . Overload Shots . | . . . . . . . . . Overflow Damage 1 | . . . . . . . . 1 Projectiles . | . . . . . . . . . Explosions 1 | . . . . . . . . 1 Melee . | . . . . . . . . . Knockbacks . | . . . . . . . . . Impact . | . . . . . . . . . Kinetic . | . . . . . . . . . Secondary . | . . . . . . . . . Self-Inflicted Damage 153 | . . . . 36 . . . 117 Shots 9 | . . . . 1 . . . 8 Rammed 1 | . . . 1 . . . . . Targets Rammed 1 | . . . 1 . . . . . Kicked . | . . . . . . . . . Crushed . | . . . . . . . . . Highest Temperature 186 | 18 186 16 5 . . 36 53 68 Average Temperature 33 | 8 101 9 3 . . 10 20 23 Received Heat Transfer 848 | . 171 45 18 20 . 243 126 225 Siege Activations . | . . . . . . . . . Robots Corrupted . | . . . . . . . . . Combat Hostiles . | . . . . . . . . . Parts Fried . | . . . . . . . . . Impact Corruptions . | . . . . . . . . . Robots Melted . | . . . . . . . . . Combat Hostiles . | . . . . . . . . . Parts Melted 13 | 1 4 3 2 . . . 3 . Heat Transferred 4601 | 185 1184 555 407 259 . 518 1443 50 Parts Sabotaged . | . . . . . . . . . Parts Stolen . | . . . . . . . . . Parts Stripped . | . . . . . . . . . Power Chain Reactions 1 | . . . . . . . . 1 Missiles Intercepted . | . . . . . . . . . Alert | -11 -10 -10 -9 -9 -9 -8 -8 -8 ------- Run | Scr Mat Min Mat Min Exi Min Mat Gar Peak Influence 956 | 15 144 170 413 88 . 166 283 956 Initial 72 | . 8 . 1 72 . . 25 25 Average 114 | 7 77 97 88 44 . 79 93 458 Maximum Alert Level 3 | . . . 2 . . . 1 3 Low Security (%) 88 | 100 100 100 74 100 . 100 83 29 Level 1 5 | . . . 23 . . . 16 8 Level 2 3 | . . . 1 . . . . 33 Level 3 2 | . . . . . . . . 28 Level 4 . | . . . . . . . . . Level 5 . | . . . . . . . . . High Security . | . . . . . . . . . Max Security . | . . . . . . . . . Squads Dispatched 4 | . 1 . . . . . 3 . Investigation 3 | . 1 . . . . . 2 . Extermination . | . . . . . . . . . Reinforcement 1 | . . . . . . . 1 . Assault . | . . . . . . . . . Garrison . | . . . . . . . . . Intercept . | . . . . . . . . . Searches Triggered . | . . . . . . . . . Construction Impeded . | . . . . . . . . . Haulers Reinforced . | . . . . . . . . . Active Scanning Responses . | . . . . . . . . . Cargo Convoy Interrupts . | . . . . . . . . . Stealth | -11 -10 -10 -9 -9 -9 -8 -8 -8 --------- Run | Scr Mat Min Mat Min Exi Min Mat Gar Distress Signals 2 | . 2 . . . . . . . Communications Jammed . | . . . . . . . . . Distress Signals . | . . . . . . . . . Times Spotted 99 | . 12 8 16 11 . 11 18 23 Peak Tracking Total 8 | . 3 3 4 8 . 3 6 8 Tactical Retreats 10 | . . . 2 1 . 1 1 5 Traps | -11 -10 -10 -9 -9 -9 -8 -8 -8 ------- Run | Scr Mat Min Mat Min Exi Min Mat Gar Traps Triggered 5 | . 2 . . . . . 1 2 Indirectly . | . . . . . . . . . Trap Hack Attempts 7 | . . . . . . . . 7 Triggered . | . . . . . . . . . Disarmed . | . . . . . . . . . Reprogrammed 3 | . . . . . . . . 3 Reused 2 | . . . . . . . . 2 Traps Extracted . | . . . . . . . . . Installed . | . . . . . . . . . Triggered 2 | . . . . . . . . 2 Machines | -11 -10 -10 -9 -9 -9 -8 -8 -8 ---------- Run | Scr Mat Min Mat Min Exi Min Mat Gar Machines Disabled 8 | . . 2 2 . . . 1 3 Max in Single Turn 2 | . . 2 1 . . . 1 1 Garrison Relay 1 | . . . . . . . . 1 Phase Generator 1 | . . . . . . . . 1 Machines Sabotaged . | . . . . . . . . . Garrisons Compromised . | . . . . . . . . . Overloaded Fab Kills . | . . . . . . . . . Hacking | -11 -10 -10 -9 -9 -9 -8 -8 -8 --------- Run | Scr Mat Min Mat Min Exi Min Mat Gar Machines Accessed 16 | . 6 . 3 . 1 1 5 . Terminals 14 | . 6 . 3 . . 1 4 . Fabricators . | . . . . . . . . . Repair Stations . | . . . . . . . . . Recycling Units . | . . . . . . . . . Scanalyzers . | . . . . . . . . . Garrison Access 1 | . . . . . . . 1 . Total Hacks 63 | . 15 . 14 . 18 3 13 . Successful 50 | . 8 . 11 . 18 2 11 . Failed 13 | . 7 . 3 . . 1 2 . Catastrophic . | . . . . . . . . . Database Lockouts . | . . . . . . . . . Manual 24 | . 11 . 5 . . 2 6 . Terminals 44 | . 15 . 14 . . 3 12 . Fabricators . | . . . . . . . . . Repair Stations . | . . . . . . . . . Recycling Units . | . . . . . . . . . Scanalyzers . | . . . . . . . . . Garrison Access 1 | . . . . . . . 1 . Terminal Hacks 39 | . 5 . 8 . 18 1 7 . Record 24 | . . . 4 . 18 . 2 . Robot Schematic 1 | . . . . . . . 1 . Robot Analysis 1 | . . . . . . . 1 . Prototype ID Bank 1 | . 1 . . . . . . . Branch Access Points 2 | . 1 . 1 . . . . . Emergency Access Points 1 | . . . 1 . . . . . Unreport Threat 2 | . 1 . . . . . 1 . Locate Traps 5 | . 2 . 2 . . . 1 . Dispatch Records 1 | . . . . . . 1 . . Hauler Manifests 1 | . . . . . . . 1 . Fabricator Hacks . | . . . . . . . . . Repair Station Hacks . | . . . . . . . . . Recycling Unit Hacks . | . . . . . . . . . Scanalyzer . | . . . . . . . . . Garrison Access Hacks 1 | . . . . . . . 1 . Unlock Access 1 | . . . . . . . 1 . Unauthorized Hacks 10 | . 3 . 3 . . 1 3 . Terminals 10 | . 3 . 3 . . 1 3 . Track 1 | . . . . . . 1 . . Assimilate 1 | . . . . . . . 1 . Botnet 5 | . 2 . 2 . . . 1 . Operators 3 | . 1 . 1 . . . 1 . Fabricators . | . . . . . . . . . Repair Stations . | . . . . . . . . . Recycling Units . | . . . . . . . . . Scanalyzers . | . . . . . . . . . Garrison Access . | . . . . . . . . . Data Cores Recovered . | . . . . . . . . . Used . | . . . . . . . . . Hacking Detections 8 | . 3 . 2 . . . 3 . Full Trace Events 1 | . . . . . . . 1 . Feedback Events . | . . . . . . . . . Feedback Blocked . | . . . . . . . . . Robot Schematics Acquired 1 | . . . . . . . 1 . Robots Built . | . . . . . . . . . Authchips . | . . . . . . . . . Time . | . . . . . . . . . Total Robot Build Rating . | . . . . . . . . . Part Schematics Acquired . | . . . . . . . . . Parts Built . | . . . . . . . . . Authchips . | . . . . . . . . . Time . | . . . . . . . . . Total Part Build Rating . | . . . . . . . . . Parts Repaired . | . . . . . . . . . Time . | . . . . . . . . . Parts Recycled . | . . . . . . . . . Recycled Matter . | . . . . . . . . . Retrieved Matter . | . . . . . . . . . Retrieved Components . | . . . . . . . . . Parts Scanalyzed . | . . . . . . . . . Part Schematics Acquired . | . . . . . . . . . Parts Damaged . | . . . . . . . . . Bothacking | -11 -10 -10 -9 -9 -9 -8 -8 -8 ------------ Run | Scr Mat Min Mat Min Exi Min Mat Gar Used RIF Installer . | . . . . . . . . . Robots Hacked . | . . . . . . . . . Non-combat . | . . . . . . . . . Combat . | . . . . . . . . . Robot Hacks Applied . | . . . . . . . . . Relay Couplers Released 1 | . . . . . . . . 1 Machine Destruction 1 | . . . . . . . . 1 Fabnet Peak Effective % . | . . . . . . . . . Robots Rewired . | . . . . . . . . . Allies Hacked . | . . . . . . . . . Hacks Repelled . | . . . . . . . . . Allies | -11 -10 -10 -9 -9 -9 -8 -8 -8 -------- Run | Scr Mat Min Mat Min Exi Min Mat Gar Total Allies 6 | . . 2 . 3 . . 1 . Largest Group 3 | . . 2 2 3 3 3 1 1 Highest-Rated Group 46 | . . 46 46 40 40 40 10 10 Highest-Rated Ally 31 | . . 31 31 31 16 16 10 10 Total Orders 1 | . . . . . . . . 1 STAY 1 | . . . . . . . . 1 Ally Attacks 55 | . . 6 23 2 . 24 . . Total Damage 696 | . . 100 335 44 . 217 . . Kills 11 | . . 1 5 2 . 3 . . Allies Corrupted . | . . . . . . . . . Allies Melted . | . . . . . . . . . Intel | -11 -10 -10 -9 -9 -9 -8 -8 -8 ------- Run | Scr Mat Min Mat Min Exi Min Mat Gar Robot Analysis Total 1 | . . . . . . . 1 . Derelict Logs Recovered 3 | . . 2 . 1 . . . . Drone Launches . | . . . . . . . . . Drone Recoveries . | . . . . . . . . . Exploration | -11 -10 -10 -9 -9 -9 -8 -8 -8 ------------- Run | Scr Mat Min Mat Min Exi Min Mat Gar Turns Passed 5197 | 117 845 901 440 753 263 592 816 470 Spaces Moved 3476 | 68 439 531 215 436 165 305 676 641 Core 17 | 17 . . . . . . . . Treads 2449 | 51 439 531 215 436 165 305 307 . Legs . | . . . . . . . . . Wheels . | . . . . . . . . . Hover . | . . . . . . . . . Flight 1010 | . . . . . . . 369 641 Fastest Speed 29 | 50 160 160 160 160 160 160 29 29 Average Speed 120 | 141 160 160 160 160 160 160 84 29 Slowest Speed 160 | 160 160 160 160 160 160 160 160 29 Overloaded Moves . | . . . . . . . . . Propulsion Burnouts . | . . . . . . . . . Robots Hopped 1 | . . . . . . . 1 . Cave-ins Triggered 1 | . . . . . . . 1 . Exploration Rate (%) 62 | 5 92 99 26 95 51 77 58 56 Regions Visited 8 Branch Regions 4 Pre-discovered Areas 2 | . . 1 . . 1 . . . Known Exits Taken 3 | . 1 . 1 . . . 1 . Unknown Exits Taken 5 | 1 . 1 . 1 1 1 . . Scrap Searched 4 | . . 1 . 2 . 1 . . Spaces Dug 2 | . . . . . . . 2 . Terrain Destroyed 240 | . . 5 22 7 . 25 2 179 Melee 2 | . . . . . . . 2 . Projectile . | . . . . . . . . . AOE 238 | . . 5 22 7 . 25 . 179 Terrain Rammed . | . . . . . . . . . Walls Destroyed . | . . . . . . . . . Machines Disabled . | . . . . . . . . . Actions | -11 -10 -10 -9 -9 -9 -8 -8 -8 --------- Run | Scr Mat Min Mat Min Exi Min Mat Gar Total 4128 | 78 509 555 279 478 164 368 836 861 Wait 288 | . 24 3 23 22 . 9 79 128 Move 3466 | 67 438 530 214 435 164 304 673 641 Hop 1 | . . . . . . . 1 . Pick Up 9 | . 2 . . 2 . . 4 1 Fast Attach 16 | 7 2 . . . . . 7 . Attach 4 | . . . . . . . 2 2 Detach 1 | . . . . . . . 1 . Swap 26 | . . 3 4 2 . 2 4 11 Drop 19 | . 2 1 2 2 . . 11 1 Fire 167 | 4 37 14 17 13 . 24 38 20 Melee 31 | . . . . . . . 8 23 Ram . | . . . . . . . . . Kick . | . . . . . . . . . Crush 1 | . . . 1 . . . . . Escape Stasis 18 | . . . . . . . . 18 Rewire 1 | . 1 . . . . . . . Trap 7 | . . . . . . . . 7 Miscellaneous 73 | . 3 4 18 2 . 29 8 9 Route ------- -11/Scrapyard -10/Materials (discovered 5 exits: *Mat x3 / *Min x2) -10/Mines (discovered 2 exits: *Mat x2) -9/Materials (discovered 2 exits: *Min x2) -9/Mines (discovered 3 exits: *Mat x2 / *Exi) -9/Exiles -8/Mines -8/Materials (discovered 3 exits: *Fac x2 / Gar) -8/Garrison (discovered 1 exit: *Mat) History --------- Turn | Location | Event 3 | -11/Scrapyard | Upgraded with Propulsion slot (x1) 3 | -11/Scrapyard | Upgraded with Utility slot (x1) 3 | -11/Scrapyard | Upgraded with Weapon slot (x1) 5 | -11/Scrapyard | Discovered new exit (range 16) 118 | -11/Scrapyard | Entered Materials 249 | -10/Materials | Discovered new exit (range 10) 338 | -10/Materials | Build established: Mutant 438 | -10/Materials | Discovered new exit (range 11) 544 | -10/Materials | Discovered new exit (range 15) 686 | -10/Materials | Identified exit to Mines 707 | -10/Materials | Discovered new exit (range 5) 963 | -10/Materials | Entered Mines 965 | -10/Mines | Reached level 2 1150 | -10/Mines | Learned Materials security intel 1372 | -10/Mines | Discovered new exit (range 9) 1487 | -10/Mines | Discovered new exit (range 8) 1719 | -10/Mines | Learned location of Storage (-7) 1864 | -10/Mines | Entered Materials 1864 | -9/Materials | Accompanied by 2 allies 1866 | -9/Materials | Reached level 3 1866 | -9/Materials | Reached level 4 1869 | -9/Materials | Led the pair of lost Derelicts to an unsafe place 2000 | -9/Materials | Identified exit to Mines 2178 | -9/Materials | Reached level 5 2304 | -9/Materials | Entered Mines 2304 | -9/Mines | Accompanied by 1 ally 2320 | -9/Mines | Learned 8 Materials zone layouts 2366 | -9/Mines | Assembled infested the area 2371 | -9/Mines | Assisted by a Guerilla fighting off Assembled 2445 | -9/Mines | Destroyed 7 combat bots 2572 | -9/Mines | Discovered new exit (range 5) 2606 | -9/Mines | Assisted by bots powering up and referring to "LRC-V3" 2664 | -9/Mines | Received a Rocket Launcher from a helpful Derelict 2727 | -9/Mines | Discovered new exit (range 9) 2790 | -9/Mines | Joined a pair of Derelicts in attacking an 0b10 outpost 3028 | -9/Mines | Deemed a non-threat by the Exiles lab entrance 3028 | -9/Mines | Discovered new exit (range 5) 3057 | -9/Mines | Entered Exiles 3057 | -9/Exiles | Accompanied by 3 allies 3059 | -9/Exiles | Reached level 6 3099 | -9/Exiles | Met 8R-AWN 3125 | -9/Exiles | Met EX-HEX 3181 | -9/Exiles | Met EX-BIN 3201 | -9/Exiles | Met EX-DEC 3208 | -9/Exiles | Learned location of Zion (-6) 3304 | -9/Exiles | Discovered new exit (range 11) 3320 | -9/Exiles | Entered Mines 3320 | -8/Mines | Accompanied by 3 allies 3350 | -8/Mines | Core integrity fell below 50% 3678 | -8/Mines | Reached level 7 3833 | -8/Mines | Discovered new exit (range 9) 3912 | -8/Mines | Entered Materials 3913 | -8/Materials | Identified exit to Factory 3914 | -8/Materials | Reached level 8 4242 | -8/Materials | Reached level 9 4249 | -8/Materials | Upgraded with Utility slot (x1) 4627 | -8/Materials | Crushed by falling debris 4647 | -8/Materials | Upgraded with Propulsion slot (x1) 4694 | -8/Materials | Core integrity fell below 50% 4727 | -8/Materials | Identified exit to Garrison 4728 | -8/Materials | Entered Garrison 4728 | -8/Garrison | Accompanied by 1 ally 4831 | -8/Garrison | Core integrity fell below 20% 4852 | -8/Garrison | Triggered checkpoint 4867 | -8/Garrison | Reached level 10 4904 | -8/Garrison | Phase Generator disabled 4906 | -8/Garrison | Garrison Relay disabled 4924 | -8/Garrison | Triggered checkpoint 4982 | -8/Garrison | Triggered checkpoint 5064 | -8/Garrison | Triggered checkpoint 5097 | -8/Garrison | Discovered new exit (range 9) 5099 | -8/Garrison | Identified exit to Materials 5157 | -8/Garrison | Reached level 11 5198 | -8/Garrison | Destroyed self with Mini Grenade Launcher Last Messages --------------- 05128_ Field strength at 90. 05129_ Field strength at 80. 05130_ Field strength at 70. 05131_ Field strength at 60. 05132_ Field strength at 50. 05133_ Field strength at 36. 05134_ Field strength at 26. 05135_ Field strength at 12. 05136_ Field strength at 2. 05136_ Stasis field depleted. 05149_ Acquired Shock Bomb Launcher. 05155_ S-10 Pest destroyed. 05157_ Reached level 11. 05157_ S-10 Pest destroyed. 05157_ Destroyed Flight Unit. 05157_ Chain reaction triggered in Corrupted Lgt. Ion Engine. 05157_ S-10 Pest destroyed. 05160_ Used Protomatter to restore core integrity (+33, depleted) 05174_ Dropped Shock Bomb Launcher. 05194_ G-47 Trooper destroyed. Map ----- +----------------------------------------------------+ | ???????????????????????????????????## ######## ? | | ????????????????g??????????????????## ######## # | | ??????????????????????????????????### ## ## # | | ?????????????????????????????????#### # ## # | | ?????????????????????????????????### | | ????????????????????????????????? | | ??????????????????????????????????## | | ????????????????????????????????#### ## ## | | ????????????????????????????????#### ## ## | | ????????????????????????????????## | | ?????????????????############???## | | ?????????????????##############?## | | ?????????????????## ####### * | | ?????????????????##]]]]] # # #######% # ## | | ?????????????????######## ### # ## ## | | ?????????????????######## * | | ???????????????????????## = | | ???????????????????????## *% ### | | ???????????????????#### #### ## ## # | | ???????????????????##### ### # ## # | | ???????????????###### # #### #### ### | | ???????????????###### # ####### ##### ### # | | ???????????????## Y ##### ### # | | ???????????????## = Y #########?## ### # | | ???????????????## ## # #########?## ### # | | ???????????????## o## ##@ ## ##????????## ### # | | ???????????????######## # #### ##????????## | | ???????????????######### ###=##????????###### | | ?????????????????###### [ ###*##????????######### | | ?????????????????## =*=[%##????????????##### | | ?????????????????##^### ]##=##????????????????? | | ?????????????????#! !####= ###%##????????????????? | | ?????????????????#! !####%####=##????????????????? | | ?????????????????#!!!#### ####*##????????????????? | | ?????????????????######## #### ##?#########??????? | | ?????????????????## " " ##?#########??????? | | ?????????????????## ##### # ## #####"" ""##??????? | | ?????????????????#! !#### ####"###### ! ###??????? | | ?????????????????#! !??## ##??????? | | ?????????????????#!!!#?####### ######"##??????? | | ?????????????????#####?####### ###### ##??????? | | ????????????????????????????###"####??## ##??????? | | ????????????????????????????### ####??## ##??????? | | ?????????????????????????????## ##????## ##??????? | | ????????????????????????????? ##????## ##??????? | | ?????????????????????????????? ????## ##??????? | | ???????????????????????????### ###??## ##??????? | | ???????????????????????????# #??## ##??????? | | ???????????????????????????# #?? # ##??????? | | ???????????????????????????# #### #???????? | +----------------------------------------------------+ Best States ------------- Heat Dissipation 39 Energy Generation 14 Energy Capacity 265 Matter Stores 300 Matter Capacity 300 Sight Range 18 Robot Scan Range 26 Terrain Scan Density 10 Armor Coverage 150 Resistance: KI 20 Resistance: TH 20 Resistance: EX 20 Resistance: EM 20 Resistance: I 20 Resistance: S 20 Resistance: P 20 Evasion (%) 64 Recoil Reduction 2 Offensive Hacking 10 Item Schematics ----------------- None Robot Schematics ------------------ A-02 Transporter | -8/Materials | Hacked Fabricated ------------ Nothing Alien Tech Used ----------------- None Achievements -------------- None Challenges ------------ None RPGLIKE | -11 -10 -10 -9 -9 -9 -8 -8 -8 --------- Run | Scr Mat Min Mat Min Exi Min Mat Gar Levels Raised 10 | . . 1 3 . 1 1 2 2 XP Earned 19225 | 4000 1155 1578 4221 500 200 2100 2605 2866 XP Spent 7700 | 1500 750 . . . . . 5050 400 Upgrades 24 | 3 2 . . . . . 17 2 Propulsion Slot 2 | 1 . . . . . . 1 . Utility Slot 2 | 1 . . . . . . 1 . Weapon Slot 1 | 1 . . . . . . . . Mass Support 1 | . . . . . . . 1 . Inventory Capacity 3 | . 2 . . . . . 1 . Sight Range 2 | . . . . . . . . 2 Sensor Range 13 | . . . . . . . 13 . Protomatter Created 546 | . 17 28 64 25 . 147 146 119 Integrity Restored 1502 | . 51 84 386 30 . 634 137 180 Core 1337 | . 51 84 298 30 . 634 60 180 Parts 165 | . . . 88 . . . 77 . Protomatter Decayed 256 | . . . 54 55 . 33 99 15 Game ------ Seed ChainBlastBoomstick Manual? 0 Play Time 00:55:30 Cumulative 55.0 hours Start 2022.05.17 @ 23:26:51 End 2022.05.18 @ 08:01:30 Sessions 2 Manual Loads 0 Difficulty Adventurer Special Mode Winter2019/RPGLIKE Game No. 17 Rogue 14 Adventurer 2 Explorer 1 Win Type - Total 1 Types 1/0/0/0/0/0/0/0/0 Lore% 26 Gallery% 37 Achievement% 33 Wizard Run 0 Options --------- ASCII 0 Keyboard 0 Movement Numpad Keybinds 0 Fullscreen 1 Font 18/SmallcapsGlow Map View 76x50 Tactical HUD 1 Map Filters NONE Filters NONE Steam 1 RUN: dd1c1e8b-bb32-404f-bf53-8fa16ed975bf